Cogmind - Beta 14 @@@ ROGUE MODE // 2025.04.27 @ 15:45:57 Player: Zaros426 Result: Destroyed by G-47 Trooper with Particle Gun Performance ------------- Evolutions (1) 500 Regions Visited (6) 1200 Robots Destroyed (132) 660 Value Destroyed (2775) 2775 Prototype IDs (43) 860 Alien Tech Used (0) 0 Bonus (834) 834 TOTAL SCORE: 6829 Bonus ------- High Alert Combat Kills 485 Follower Combat Kills 49 Aligned with FarCom 300 Cogmind --------- Core Integrity 0/400 Matter 300/300 Energy 280/280 System Corruption 0% Temperature Cool (9) Movement Treading (240) Ox1 Location -8/Mines Parts ------- > --- POWER (1) -------- Cooled Ion Engine > --- PROPULSION (2) --- Improved Treads Improved Treads > --- UTILITY (4) ------ High-capacity Storage Unit Seismic Detector Advanced Targeting Computer Advanced Targeting Computer > --- WEAPON (2) ------- Light EM Pulse Cannon Datajack > --- INVENTORY (20) --- High-capacity Battery (250) High-capacity Matter Pod (200) Structural Scanner Improved Terrain Scanner Modified TNC 0b10 Alert Chip Hacking Suite Spread Laser Improved Assault Rifle Improved Light Cannon AWS/Autocannon Rocket Launcher Rocket Launcher Plasma Cutter Katana EMP Trap Peak State ------------ > --- POWER ------------ Cooled Ion Engine > --- PROPULSION ------- Improved Treads Improved Treads > --- UTILITY ---------- High-capacity Storage Unit Seismic Detector Advanced Targeting Computer Advanced Targeting Computer > --- WEAPON ----------- Light EM Pulse Cannon Datajack > --- INVENTORY -------- High-capacity Battery High-capacity Matter Pod Structural Scanner Improved Terrain Scanner Modified TNC 0b10 Alert Chip Hacking Suite Spread Laser Improved Assault Rifle Improved Light Cannon AWS/Autocannon Rocket Launcher Rocket Launcher Plasma Cutter Katana EMP Trap EMP Trap EMP Trap [Rating: 25] Favorites ----------- Power Cooled Ion Engine Engine Cooled Ion Engine Power Core Light Nuclear Core Propulsion Improved Treads Treads Improved Treads Utility High-capacity Storage Unit Device Improved Heat Sink Storage High-capacity Storage Unit Processor Advanced Targeting Computer Protection Light Armor Plating Weapon Improved Light Cannon Energy Gun Heavy EM Pulse Gun Energy Cannon Light EM Pulse Cannon Ballistic Gun Assault Rifle Ballistic Cannon Improved Light Cannon Launcher Rocket Launcher Special Weapon Mining Laser Impact Weapon Flail Special Melee Weapon Datajack Build | -11 -10 -10 -9 -9 -9 -8 ------- Run | Yrd Mat Min Mat Min Exi Min Slots Evolved 2 | . . . 2 . . . Power . | . . . . . . . Propulsion . | . . . . . . . Utility 2 | . . . 2 . . . Weapon . | . . . . . . . Parts Attached 94 | 7 14 . 62 7 3 1 Power 13 | 1 3 . 8 1 . . Engine 12 | 1 2 . 8 1 . . Core 1 | . 1 . . . . . Reactor . | . . . . . . . Propulsion 15 | 2 . . 12 1 . . Treads 15 | 2 . . 12 1 . . Leg . | . . . . . . . Wheel . | . . . . . . . Hover . | . . . . . . . Flight . | . . . . . . . Utility 24 | 1 4 . 16 2 . 1 Device 5 | . 2 . 2 1 . . Storage 3 | 1 2 . . . . . Processor 5 | . . . 3 1 . 1 Hackware . | . . . . . . . Protection 11 | . . . 11 . . . Artifact . | . . . . . . . Weapon 42 | 3 7 . 26 3 3 . Energy Gun 9 | 2 2 . 3 2 . . Energy Cannon 5 | . 2 . 2 . 1 . Ballistic Gun 4 | 1 . . 3 . . . Ballistic Cannon 14 | . 2 . 11 . 1 . Launcher 5 | . . . 4 1 . . Special Weapon 1 | . 1 . . . . . Impact Weapon 3 | . . . 3 . . . Slashing Weapon . | . . . . . . . Piercing Weapon . | . . . . . . . Special Melee Weapon 1 | . . . . . 1 . Unidentified Prototypes 4 | . . . 4 . . . Parts Lost 9 | . 1 . 7 1 . . Power 1 | . 1 . . . . . Propulsion 3 | . . . 2 1 . . Utility 3 | . . . 3 . . . Weapon 2 | . . . 2 . . . Highest Loss Streak 5 | . 1 . 5 1 . . To Critical Strikes . | . . . . . . . Average Slot Usage (%) 97 | . 99 100 98 92 100 100 Engine 11 | . 13 14 11 11 11 11 Treads 23 | . 28 28 22 22 22 22 Device 10 | . 14 14 7 12 11 11 Storage 11 | . 14 14 11 11 11 11 Processor 8 | . . . 4 13 22 22 Protection 8 | . . . 19 . . . Energy Gun 7 | . 14 . . 21 5 . Energy Cannon 1 | . 1 . . . 6 11 Ballistic Gun 1 | . 3 . 1 . . . Ballistic Cannon 10 | . 7 28 18 . . . Special Melee Weapon 1 | . . . . . 9 11 Peak Build Rating 25 | 6 13 13 22 21 24 25 Average Rating 17 | 5 10 13 19 19 22 24 On Entrance 13 | . 6 13 13 20 21 24 Naked Turns . | . . . . . . . Heaviest Build 65 | 14 54 54 65 56 55 54 Greatest Support 46 | 40 40 40 46 46 46 46 Greatest Overweight (x) 3 | . 1 1 3 1 1 1 Average Overweight (x) . | . . 1 1 1 1 1 Largest Inventory Capacity 20 | 8 20 20 20 20 20 20 Average Capacity 18 | 7 15 20 20 20 20 20 Most Carried 20 | 4 19 19 20 20 20 20 Average Carried 16 | 2 11 19 18 17 19 19 Final Capacity 20 | 8 20 20 20 20 20 20 Final Carried 20 | 4 19 19 16 20 20 18 Class Distribution -------------------- 91% | Mutant 8% | Scavenger-Mutant Dominant Class ---------------- Mutant | -10/Materials Mutant | -10/Mines Mutant | -9/Materials Mutant | -9/Mines Mutant | -9/Exiles Mutant | -8/Mines Resources | -11 -10 -10 -9 -9 -9 -8 ----------- Run | Yrd Mat Min Mat Min Exi Min Matter Collected 3525 | 321 414 . 2375 375 . 40 Remotely . | . . . . . . . Salvage Created 3171 | 224 694 . 1988 265 . . Parts 228 | 16 42 . 132 38 . . Haulers Intercepted 8 | . 2 . 6 . . . Recyclers Shooed 5 | . 1 . 4 . . . Parts Field Recycled . | . . . . . . . Retrieved Matter . | . . . . . . . Parts Self-Destructed . | . . . . . . . Prevented . | . . . . . . . Kills | -11 -10 -10 -9 -9 -9 -8 ------- Run | Yrd Mat Min Mat Min Exi Min Combat Hostiles Destroyed 78 | . 15 . 50 13 . . Guns 18 | . 10 . 1 7 . . Cannons 44 | . 5 . 39 . . . AOE 16 | . . . 10 6 . . Classes Destroyed 14 | 3 6 . 5 . . . Worker 7 | 2 1 . 3 1 . . Builder 10 | . 1 . 7 2 . . Tunneler 9 | 5 . . 2 2 . . Hauler 8 | . 2 . 6 . . . Recycler 7 | 1 . . 6 . . . Mechanic 3 | . . . 3 . . . Operator 3 | . 2 . 1 . . . Watcher 8 | . 3 . 5 . . . Swarmer 23 | . 2 . 8 13 . . Grunt 40 | . 13 . 27 . . . Brawler 1 | . . . 1 . . . Duelist 3 | . . . 3 . . . Protector 2 | . . . 2 . . . Sentry 9 | . . . 9 . . . Best Kill Streak 9 | 5 3 . 9 4 . . Combat Bots Only 5 | . 3 . 5 4 . . Max Kills in Single Turn 7 | 2 2 . 7 4 . . Gunslinging . | . . . . . . . Exploded 4 | . . . 4 3 . . Melee . | . . . . . . . Uniques/NPCs Destroyed . | . . . . . . . Combat | -11 -10 -10 -9 -9 -9 -8 -------- Run | Yrd Mat Min Mat Min Exi Min Hostile Shots Fired 348 | . 48 . 257 36 . 7 Missed 103 | . 12 . 77 11 . 3 Damage Taken 3375 | . 446 . 2581 272 . 76 Core 448 | . 48 . 333 33 . 34 Absorbed by Shields . | . . . . . . . Core Remaining (%) 90 | 100 . 80 . . . . Volleys Fired 305 | 17 60 . 203 25 . . Largest 2 | 2 2 . 2 2 . . Hottest 125 | 70 125 . 79 90 . . Shots Fired 595 | 34 111 . 401 49 . . Gun 192 | 34 80 . 30 48 . . Cannon 388 | . 24 . 364 . . . Launcher 8 | . . . 7 1 . . Special 7 | . 7 . . . . . Kinetic 440 | 17 30 . 393 . . . Thermal 98 | 17 81 . . . . . Explosive 8 | . . . 7 1 . . Electromagnetic 49 | . . . 1 48 . . Robot Hit Streak 24 | 4 15 . 24 5 . . Robot Miss Streak 7 | 3 5 . 7 3 . . Penetration Max . | . . . . . . . Secondary Targets 2 | . . . . 2 . . Max Gunslinging Chain 1 | . . . . 1 . . Shots Hit Robots 339 | 20 62 . 224 28 3 2 Core Hits 162 | 9 32 . 102 19 . . Critical Kills . | . . . . . . . Critical Parts Destroyed . | . . . . . . . Critical Strikes 22 | . 3 . 18 1 . . Burn 3 | . 3 . . . . . Blast 18 | . . . 18 . . . Corrupt 1 | . . . . 1 . . Melee Attacks 7 | . . . 2 . 3 2 Impact 2 | . . . 2 . . . Slashing . | . . . . . . . Piercing . | . . . . . . . Sneak Attacks 5 | . . . . . 3 2 Combat Hostiles . | . . . . . . . Follow-up Attacks . | . . . . . . . Damage Inflicted 8025 | 259 990 . 6078 698 . . Guns 1659 | 259 655 . 317 428 . . Cannons 4747 | . 287 . 4460 . . . Explosions 1571 | . . . 1301 270 . . Melee . | . . . . . . . Ramming . | . . . . . . . Kinetic 5167 | 134 281 . 4752 . . . Thermal 1383 | 125 709 . 463 86 . . Explosive 1022 | . . . 838 184 . . Electromagnetic 453 | . . . 25 428 . . Impact . | . . . . . . . Slashing . | . . . . . . . Piercing . | . . . . . . . Highest Corruption . | . . . . . . . Average Corruption . | . . . . . . . Corruption Purged . | . . . . . . . Corruption Blocked . | . . . . . . . Overload Shots . | . . . . . . . Overflow Damage 164 | . 16 . 134 14 . . Projectiles 68 | . 16 . 52 . . . Explosions 96 | . . . 82 14 . . Melee . | . . . . . . . Knockbacks 36 | . 1 . 35 . . . Impact . | . . . . . . . Kinetic 35 | . 1 . 34 . . . Secondary 1 | . . . 1 . . . Self-Inflicted Damage 76 | . . . . 76 . . Shots 2 | . . . . 2 . . Rammed . | . . . . . . . Targets Rammed . | . . . . . . . Kicked . | . . . . . . . Crushed . | . . . . . . . Highest Temperature 559 | 90 246 . 559 45 . . Average Temperature 90 | 33 59 . 131 13 . . Received Heat Transfer 1230 | . 240 . 954 . . 36 Effects 18 | . . . 18 . . . Shutdowns 3 | . . . 3 . . . Energy Bleed 1 | . . . 1 . . . Interference 1 | . . . 1 . . . Matter Decay 3 | . . . 3 . . . Short Circuit 2 | . . . 2 . . . Damage (minor) 4 | . . . 4 . . . Damage (major) 3 | . . . 3 . . . Damage (core) 1 | . . . 1 . . . Siege Activations . | . . . . . . . Robots Corrupted . | . . . . . . . Combat Hostiles . | . . . . . . . Parts Fried . | . . . . . . . Impact Corruptions . | . . . . . . . Robots Melted . | . . . . . . . Combat Hostiles . | . . . . . . . Parts Melted 2 | . 2 . . . . . Heat Transferred 2881 | 370 2061 . 350 100 . . Parts Sabotaged . | . . . . . . . Parts Stolen . | . . . . . . . Parts Stripped . | . . . . . . . Power Chain Reactions 2 | . . . . 2 . . Alert | -11 -10 -10 -9 -9 -9 -8 ------- Run | Yrd Mat Min Mat Min Exi Min Peak Influence 1075 | 40 342 97 1075 697 . 65 Initial 401 | . 26 97 37 401 . . Average 424 | 21 137 97 611 495 . 1 Maximum Alert Level 3 | . 1 . 3 2 . . Low Security (%) 26 | 100 60 100 4 . . 100 Level 1 28 | . 39 . 36 11 . . Level 2 24 | . . . 16 88 . . Level 3 21 | . . . 42 . . . Level 4 . | . . . . . . . Level 5 . | . . . . . . . High Security . | . . . . . . . Max Security . | . . . . . . . Sterilizations 1 | . . . 1 . . . Squads Dispatched 14 | . 4 . 10 . . . Investigation 7 | . 2 . 5 . . . Extermination . | . . . . . . . Reinforcement 4 | . 2 . 2 . . . Assault 3 | . . . 3 . . . Garrison . | . . . . . . . Intercept . | . . . . . . . Searches Triggered . | . . . . . . . Construction Impeded . | . . . . . . . Haulers Reinforced . | . . . . . . . Active Scanning Responses . | . . . . . . . Cargo Convoy Interrupts . | . . . . . . . Stealth | -11 -10 -10 -9 -9 -9 -8 --------- Run | Yrd Mat Min Mat Min Exi Min Distress Signals 7 | . 3 . 4 . . . Communications Jammed . | . . . . . . . Distress Signals . | . . . . . . . Times Spotted 111 | . 22 . 68 17 . 4 Peak Tracking Total 8 | . 6 . 8 4 . 3 Tactical Retreats 9 | . 2 . 3 3 . 1 Traps | -11 -10 -10 -9 -9 -9 -8 ------- Run | Yrd Mat Min Mat Min Exi Min Traps Triggered 1 | . . . 1 . . . Indirectly . | . . . . . . . Trap Hack Attempts . | . . . . . . . Triggered . | . . . . . . . Disarmed . | . . . . . . . Reprogrammed . | . . . . . . . Reused 2 | . . . . . . 2 Traps Extracted . | . . . . . . . Installed 2 | . . . . . . 2 Triggered 2 | . . . . . . 2 Most Traps Carried 3 | . . . . 3 3 3 Machines | -11 -10 -10 -9 -9 -9 -8 ---------- Run | Yrd Mat Min Mat Min Exi Min Machines Disabled 9 | . 1 . 8 . . . Max in Single Turn 3 | . 1 . 3 . . . Machines Repaired . | . . . . . . . Machines Dismantled . | . . . . . . . Machines Sabotaged . | . . . . . . . Overloaded Fab Kills . | . . . . . . . Hacking | -11 -10 -10 -9 -9 -9 -8 --------- Run | Yrd Mat Min Mat Min Exi Min Machines Accessed 24 | . 8 . 14 . 2 . Terminals 15 | . 6 . 9 . . . Fabricators . | . . . . . . . Repair Stations 2 | . . . 2 . . . Recycling Units 4 | . 2 . 2 . . . Scanalyzers 1 | . . . 1 . . . Garrison Access . | . . . . . . . Total Hacks 64 | . 23 . 39 . 2 . Successful 41 | . 14 . 25 . 2 . Failed 23 | . 9 . 14 . . . Catastrophic 3 | . . . 3 . . . Database Lockouts . | . . . . . . . Manual 39 | . 19 . 19 . 1 . Terminals 47 | . 21 . 26 . . . Fabricators . | . . . . . . . Repair Stations 4 | . . . 4 . . . Recycling Units 6 | . 2 . 4 . . . Scanalyzers 5 | . . . 5 . . . Garrison Access . | . . . . . . . Terminal Hacks 17 | . 4 . 11 . 2 . Record 1 | . . . . . 1 . Robot Analysis 4 | . 2 . 2 . . . Prototype ID Bank 3 | . 1 . 2 . . . Terminal Index 1 | . . . 1 . . . Unreport Threat 1 | . . . 1 . . . Locate Traps 3 | . 1 . 2 . . . Maintenance Status 1 | . . . 1 . . . Hauler Manifests 1 | . . . 1 . . . Zone Layout 1 | . . . 1 . . . Derelict Proto ID Bank 1 | . . . . . 1 . Fabricator Hacks . | . . . . . . . Repair Station Hacks 3 | . . . 3 . . . Scan Component 2 | . . . 2 . . . Repair 1 | . . . 1 . . . Recycling Unit Hacks . | . . . . . . . Scanalyzer 4 | . . . 4 . . . Insert Component 2 | . . . 2 . . . Analyze 2 | . . . 2 . . . Garrison Access Hacks . | . . . . . . . Unauthorized Hacks 17 | . 10 . 7 . . . Terminals 13 | . 8 . 5 . . . Botnet 2 | . 2 . . . . . Operators 1 | . 1 . . . . . Skim 10 | . 5 . 5 . . . Fabricators . | . . . . . . . Repair Stations . | . . . . . . . Recycling Units 4 | . 2 . 2 . . . Tunnel 4 | . 2 . 2 . . . Scanalyzers . | . . . . . . . Garrison Access . | . . . . . . . Data Cores Recovered . | . . . . . . . Used . | . . . . . . . Hacking Detections 17 | . 5 . 12 . . . Full Trace Events 3 | . 1 . 2 . . . Feedback Events . | . . . . . . . Feedback Blocked . | . . . . . . . Robot Schematics Acquired . | . . . . . . . Robots Built . | . . . . . . . Authchips . | . . . . . . . Time . | . . . . . . . Total Robot Build Rating . | . . . . . . . Part Schematics Acquired 2 | . . . 2 . . . Parts Built . | . . . . . . . Authchips . | . . . . . . . Time . | . . . . . . . Total Part Build Rating . | . . . . . . . Parts Repaired 1 | . . . 1 . . . Time 44 | . . . 44 . . . Parts Recycled . | . . . . . . . Recycled Matter . | . . . . . . . Retrieved Matter . | . . . . . . . Retrieved Components . | . . . . . . . Parts Scanalyzed 2 | . . . 2 . . . Part Schematics Acquired 2 | . . . 2 . . . Parts Damaged . | . . . . . . . Bothacking | -11 -10 -10 -9 -9 -9 -8 ------------ Run | Yrd Mat Min Mat Min Exi Min Used RIF Installer . | . . . . . . . Robots Hacked 4 | . . . . . 3 1 Non-combat 3 | . . . . . 2 1 Combat 1 | . . . . . 1 . Robot Hacks Applied 4 | . . . . . 3 1 parse_system 4 | . . . . . 3 1 Relay Couplers Released . | . . . . . . . Fabnet Peak Effective % . | . . . . . . . Robots Rewired . | . . . . . . . Allies Hacked . | . . . . . . . Hacks Repelled . | . . . . . . . Allies | -11 -10 -10 -9 -9 -9 -8 -------- Run | Yrd Mat Min Mat Min Exi Min Total Allies 3 | . . . . 3 . . Largest Group 3 | . . . . 3 . . Highest-Rated Group 40 | . . . . 40 . . Highest-Rated Ally 16 | . . . . 16 . . Total Orders . | . . . . . . . Ally Attacks 26 | . . . . 26 . . Total Damage 164 | . . . . 164 . . Kills 7 | . . . . 7 . . Allies Corrupted . | . . . . . . . Allies Melted . | . . . . . . . Intel | -11 -10 -10 -9 -9 -9 -8 ------- Run | Yrd Mat Min Mat Min Exi Min Robot Analysis Total 4 | . 2 . 2 . . . Derelict Logs Recovered 2 | . . . . 2 . . Drone Launches . | . . . . . . . Drone Recoveries . | . . . . . . . Exploration | -11 -10 -10 -9 -9 -9 -8 ------------- Run | Yrd Mat Min Mat Min Exi Min Turns Passed 8013 | 236 1439 123 3620 1332 739 524 Spaces Moved 2947 | 108 657 52 1164 501 250 215 Core 2 | 2 . . . . . . Treads 2945 | 106 657 52 1164 501 250 215 Legs . | . . . . . . . Wheels . | . . . . . . . Hover . | . . . . . . . Flight . | . . . . . . . Fastest Speed 50 | 50 160 240 240 240 240 240 Average Speed 223 | 157 174 240 241 240 240 240 Slowest Speed 400 | 160 240 240 400 240 240 240 Overloaded Moves . | . . . . . . . Propulsion Burnouts . | . . . . . . . Robots Hopped . | . . . . . . . Cave-ins Triggered . | . . . . . . . Exploration Rate (%) 59 | 5 95 9 97 92 60 61 Regions Visited 6 Branch Regions 4 Pre-discovered Areas 8 | . 2 1 4 . 1 . Known Exits Taken . | . . . . . . . Unknown Exits Taken 6 | 1 1 1 1 1 1 . Scrap Searched 3 | . . . . 2 . 1 Spaces Dug 7 | . 5 . 2 . . . Terrain Destroyed 125 | . 6 . 97 22 . . Melee 2 | . . . 2 . . . Projectile 21 | . 6 . 15 . . . AOE 102 | . . . 80 22 . . Terrain Rammed . | . . . . . . . Walls Destroyed . | . . . . . . . Machines Disabled . | . . . . . . . Actions | -11 -10 -10 -9 -9 -9 -8 --------- Run | Yrd Mat Min Mat Min Exi Min Total 3789 | 137 821 51 1581 585 391 223 Wait 275 | . 59 . 54 38 124 . Move 2941 | 107 656 51 1163 500 249 215 Hop . | . . . . . . . Pick Up 82 | 5 23 . 41 8 5 . Fast Attach 23 | 6 1 . 14 1 . 1 Attach 20 | . 1 . 15 3 1 . Detach 4 | . . . 2 2 . . Swap 51 | 1 12 . 33 3 2 . Drop 79 | 1 9 . 54 5 7 3 Fire 305 | 17 60 . 203 25 . . Melee 7 | . . . 2 . 3 2 Ram . | . . . . . . . Kick . | . . . . . . . Crush . | . . . . . . . Escape Stasis . | . . . . . . . Rewire . | . . . . . . . Trap 2 | . . . . . . 2 Miscellaneous . | . . . . . . . Route ------- -11/Scrapyard -10/Materials (discovered 4 exits: *Mat x2 / [*Min x2]) -10/Mines -9/Materials (discovered 4 exits: *Mat x3 / [*Min]) -9/Mines (discovered 4 exits: *Mat x2 / *Exi / [*Zio]) -9/Exiles -8/Mines (discovered 1 exit: *Mat) History --------- Turn | Location | Event 2 | -11/Scrapyard | Met Revision 17 24 | -11/Scrapyard | Discovered new exit (range 16) 237 | -11/Scrapyard | Entered Materials 315 | -10/Materials | Build established: Mutant 366 | -10/Materials | Discovered new exit (range 7) 667 | -10/Materials | Discovered new exit (range 12) 670 | -10/Materials | Discovered new exit (range 14) 1175 | -10/Materials | Discovered new exit (range 5) 1676 | -10/Materials | Entered Mines 1677 | -10/Mines | Learned location of Storage (-8) 1681 | -10/Mines | Met a Derelict bent on vengeance 1720 | -10/Mines | Discovered new exit (range 6) 1745 | -10/Mines | Assembled infested the area 1799 | -10/Mines | Entered Materials 1799 | -9/Materials | Evolved 2 slots: Utility x2 2373 | -9/Materials | Discovered new exit (range 14) 2576 | -9/Materials | Build established: Scavenger-Mutant 3229 | -9/Materials | Build established: Mutant 3571 | -9/Materials | Discovered new exit (range 13) 3799 | -9/Materials | First assault squad dispatched 4117 | -9/Materials | Learned location of 1 exit from Storage 4164 | -9/Materials | Learned location of Mines (-9) 4200 | -9/Materials | Learned 2 Storage zone layouts 4227 | -9/Materials | Learned location of Zion (-7) 4274 | -9/Materials | Identified exit to Materials 4311 | -9/Materials | Learned 4 Recycling zone layouts 4339 | -9/Materials | Core integrity fell below 50% 4350 | -9/Materials | Repaired Broken Imp. Light Cannon 4387 | -9/Materials | Lost 5 parts (2n2u1w) 4501 | -9/Materials | Discovered new exit (range 16) 4813 | -9/Materials | Sterilization system engaged 4813 | -9/Materials | Non-combat units ordered to evacuate 4913 | -9/Materials | Combat units ordered to evacuate 5113 | -9/Materials | Ambient heat levels rising (+10) 5263 | -9/Materials | Ambient heat levels rising (+10) 5362 | -9/Materials | Core integrity fell below 20% 5413 | -9/Materials | Ambient heat levels rising (+10) 5419 | -9/Materials | Entered Mines 5847 | -9/Mines | A Derelict revealed a hidden shortcut to a safe place 6029 | -9/Mines | Assisted by bots powering up and referring to "LRC-V3" 6355 | -9/Mines | Learned 2 Materials zone layouts 6393 | -9/Mines | Found a hidden stash of uninstalled traps 6427 | -9/Mines | Learned location of 1 exit from Materials 6739 | -9/Mines | Deemed a non-threat by the Exiles lab entrance 6739 | -9/Mines | Discovered new exit (range 5) 6751 | -9/Mines | Entered Exiles 6816 | -9/Exiles | Met 8R-AWN 6855 | -9/Exiles | Met EX-HEX 6926 | -9/Exiles | Met EX-BIN 6957 | -9/Exiles | Aligned with FarCom system 6959 | -9/Exiles | Given EX-Vault access code 7014 | -9/Exiles | Opened EX-Vault 7032 | -9/Exiles | Found Modified TNC 7038 | -9/Exiles | Found 0b10 Alert Chip 7056 | -9/Exiles | Found AWS/Autocannon 7113 | -9/Exiles | Warned to stay clear of 0b10 Research branches 7121 | -9/Exiles | Exiles lab attacked by MAIN.C 7308 | -9/Exiles | Discovered new exit (range 10) 7490 | -9/Exiles | Stole three prototypes: Modified TNC, 0b10 Alert Chip, AWS/Autocannon 7490 | -9/Exiles | Entered Mines 7692 | -8/Mines | Discovered exit to Materials (range 8) 8014 | -8/Mines | Destroyed by G-47 Trooper with Particle Gun Last Messages --------------- 07692_ EXIT=FOUND: MATERIALS 07711_ DK-RAY heat damages Mak. Power Source, Mak. Leg, Broken Titanium Leg, Mak. Light Armor Plating. 07723_ DK-RAY heat damages core (-2). 07724_ K-01 Serf collects debris. 07728_ DK-RAY heat damages core (-3). 07728_ K-01 Serf collects debris. 07756_ Sneak attack on K-01 Serf. 07756_ Jacked K-01 Serf... 07758_ K-01 Serf collects debris. 07972_ Sneak attack on R-06 Scavenger. 07972_ Jacked R-06 Scavenger... >>parse_system Reading system data... 07988_ Laser Drill disabled. 07990_ Dropped EMP Trap. 07990_ Installed EMP Trap. 08003_ Dropped EMP Trap. 08004_ Installed EMP Trap. 08011_ G-47 Trooper triggered EMP Trap. 08011_ A bubble of electromagnetic force engulfs the area. Map ----- +----------------------------------------------------+ | ????# #?????????????????????# #???# #??# | | ????## #?????????????????????# #???# #??# | | ?????# ##?????????????????????# ??? #??## | | ?????# ##??????????????????????###???# #???###### | | ????## ###???????????????????????????? #????????# | | ???## ###?????????????????????????? #????????# | | ??## ###???????????????????????? ?????????# | | ??# #???????????????????????? ?????????? | | ??## ## #??????????????????????? ?????????? | | ???# ###?? #?????????????????????? ?????????? | | ???# ####?? ##?????????????????????? ?????????? | | ???# ##??#?????????????????????????????????? | | ???## #????????????????????????????????????? | | ????# #????????????????????????????????????? | | ????# ##????????????????????????????????????? | | ????# ####?????????????????????????????????????? | | ????# ##??????????????????????? ????????????????? | | ????# #???????????????????????? ????????????????? | | ????## #???????????????????????? ????????????????? | | ?????# #???????????????????????? ##??????????????? | | ?????# #???????????????????????? ##?????????????? | | ?????# ####?????#######?????????# ##????????????? | | ?????# #????## #####?????# #????????????? | | ?????#### ###### #?????# #????????????? | | ????????# ## #????## #?????????? ?? | | ????????######### ##@#???## #????????? ??? | | ????????????????## ### #???# ##?????? ???? | | ?????????????????## #?# ##### ##??? ????? | | ??????????????????#####?# ## ## """ ?????? | | ????????????????????????#g## ^ """ ?????? | | ???????????############## gg ### "" ?????? | | ???????????# ##### #?### ?? | | ???????????# """ """ #???# #????#### | | ???????????# """ """ #???# #????????? ### #? | | ???????????# """ """ ##### #??????????? ##????? | | ???????????# #??????????????????? | | ???????????# """ """ #??????????????????? | | ???????????# """ """ ########??????????????????? | | ???????????# """ """ #?????????????????????????? | | ???????????# #?????????????????????????? | | ???????????#############?????????????????????????? | | ?????????????????????????????????????????????????? | | ?????????????????????????????????????????????????? | | ?????????????????????????????????????????????????? | | ?????????????????????????????????????????????????? | | ?????????????????????????????????????????????????? | | ?????????????????????????????????????????????????? | | | | | | | +----------------------------------------------------+ Best States ------------- Heat Dissipation 42 Coolant Potential 100 Energy Generation 14 Energy Capacity 280 Matter Stores 300 Matter Capacity 300 Sight Range 18 Terrain Scan Density 10 Armor Coverage 300 Evasion (%) 40 Targeting Accuracy 16 Recoil Reduction 2 Item Schematics ----------------- Datajack | -9/Materials | Scanalyzed Cld. Ion Engine | -9/Materials | Scanalyzed Robot Schematics ------------------ None Fabricated ------------ Nothing Alien Tech Used ----------------- None Achievements -------------- None Challenges ------------ None Game ------ Seed EnhancedAlertGenerator Manual? 0 Play Time 00:49:08 Cumulative 211.9 hours Start 2025.04.27 @ 13:29:53 End 2025.04.27 @ 15:45:57 Sessions 3 Manual Loads 0 Difficulty Rogue Special Mode None Game No. 105 Rogue 105 Adventurer 0 Explorer 0 Win Type - Total 0 Types 0/0/0/0/0/0/0/0/0 Lore% 55 Gallery% 73 Achievement% 60 Wizard Run 0 Options --------- Layout 0 ASCII 0 Keyboard 0 Movement Mouse Keybinds 0 Fullscreen 1 Font 24/Smallcaps Map View 183x50 Zoom Use 0% Tactical HUD 1 Map Filters NONE Filters NONE Steam 0 RUN: 9113e6f5-80c8-4261-90eb-962cb7d0b410